lending/lending_fUSD_20250808
["ID","MTS","AMOUNT","RATE_DAILY","PERIOD"]
[378002550,1754664632380,-317.72,0.00018695,2]
[378002551,1754664632389,-500.0,0.00018699,2]
[378002552,1754664632398,-2456.27777075,0.00018709,2]
[378002554,1754664632408,-2456.27777075,0.00018736,2]
[378002555,1754664632417,-5591.31319997,0.00018743,2]
[378002556,1754664632426,-198.29,0.00018744,2]
[378002557,1754664632435,-623.67,0.00018744,3]
[378002558,1754664632445,-400.0,0.00018753,2]
[378002559,1754664632456,-402.81088221,0.00018753,2]
[378002560,1754664632466,-400.0,0.00018753,2]
[378002561,1754664632475,-400.0,0.00018753,2]
[378002562,1754664632484,-243.64,0.00018753,2]
[378002564,1754664632493,-400.0,0.00018753,2]
[378002565,1754664632503,-377.38,0.00018753,2]
[378002566,1754664632513,-436.88,0.00018753,2]
[378002567,1754664632522,-425.57,0.00018753,2]
[378002568,1754664632532,-400.0,0.00018753,2]
[378002569,1754664632542,-316.13176457,0.00018753,2]
[378002570,1754664632552,-400.0,0.00018753,2]
[378002571,1754664632561,-400.0,0.00018753,2]
[378002572,1754664632571,-400.0,0.00018753,2]
[378002573,1754664632581,-400.0,0.00018753,2]
[378002574,1754664632591,-451.18,0.00018753,2]
[378002575,1754664632602,-403.18068411,0.00018753,2]
[378002576,1754664632611,-400.0,0.00018753,2]
[378002578,1754664632621,-671.61,0.00018753,2]
[378002579,1754664632630,-400.0,0.00018753,2]
[378002580,1754664632640,-400.0,0.00018753,2]
[378002581,1754664632649,-400.0,0.00018753,2]
[378002582,1754664632658,-400.0,0.00018753,2]
[378002583,1754664632668,-400.0,0.00018753,2]
[378002584,1754664632677,-400.0,0.00018753,2]
[378002585,1754664632686,-400.0,0.00018753,2]
[378002586,1754664632695,-400.0,0.00018753,2]
[378002587,1754664632708,-400.0,0.00018753,2]
[378002588,1754664632717,-400.0,0.00018753,2]
[378002589,1754664632727,-400.0,0.00018753,2]
[378002590,1754664632736,-400.0,0.00018753,2]
[378002591,1754664632745,-400.0,0.00018753,2]
[378002592,1754664632754,-400.0,0.00018753,2]
[378002593,1754664632763,-400.90291116,0.00018753,2]
[378002594,1754664632772,-400.0,0.00018753,2]
[378002595,1754664632781,-406.48,0.00018753,2]
[378002596,1754664632791,-400.0,0.00018753,2]
[378002597,1754664632800,-400.0,0.00018753,2]
[378002598,1754664632810,-454.45,0.00018753,2]
[378002599,1754664632820,-400.0,0.00018753,2]
[378002600,1754664632830,-516.56,0.00018753,2]
[378002601,1754664632839,-400.0,0.00018753,2]
[378002602,1754664632849,-668.63,0.00018753,2]
[378002603,1754664632859,-535.93,0.00018753,2]
[378002604,1754664632869,-500.0,0.00018753,2]
[378002605,1754664632878,-400.0,0.00018753,2]
[378002606,1754664632889,-403.29,0.00018753,2]
[378002607,1754664632898,-400.0,0.00018753,2]
[378002608,1754664632908,-430.61,0.00018753,2]
[378002609,1754664632917,-404.9,0.00018753,2]
[378002610,1754664632927,-400.0,0.00018753,2]
[378002611,1754664632936,-400.0,0.00018753,2]
[378002612,1754664632946,-400.0,0.00018753,2]
[378002613,1754664632956,-401.31839368,0.00018753,2]
[378002614,1754664632966,-400.0,0.00018753,2]
[378002615,1754664632975,-649.74,0.00018753,2]
[378002616,1754664632984,-400.0,0.00018753,2]
[378002617,1754664632993,-400.0,0.00018753,2]
[378002619,1754664633002,-400.0,0.00018753,2]
[378002621,1754664633011,-400.0,0.00018753,2]
[378002623,1754664633020,-400.0,0.00018753,2]
[378002625,1754664633030,-400.0,0.00018753,2]
[378002627,1754664633039,-400.0,0.00018753,2]
[378002629,1754664633048,-400.0,0.00018753,2]
[378002631,1754664633057,-400.0,0.00018753,2]
[378002633,1754664633067,-400.0,0.00018753,2]
[378002635,1754664633077,-698.95,0.00018753,2]
[378002637,1754664633086,-573.8,0.00018753,2]
[378002639,1754664633096,-400.0,0.00018753,2]
[378002641,1754664633105,-308.8170658,0.00018753,2]
[378002643,1754664633115,-400.0,0.00018753,2]
[378002645,1754664633124,-400.0,0.00018753,2]
[378002647,1754664633133,-400.0,0.00018753,2]
[378002650,1754664633142,-400.0,0.00018753,2]
[378002653,1754664633152,-482.88,0.00018753,2]
[378002656,1754664633162,-400.0,0.00018753,2]
[378002659,1754664633171,-400.0,0.00018753,2]
[378002661,1754664633180,-400.0,0.00018753,2]
[378002663,1754664633190,-400.0,0.00018753,2]
[378002665,1754664633199,-400.0,0.00018753,2]
[378002667,1754664633208,-400.0,0.00018753,2]
[378002668,1754664633218,-400.0,0.00018753,2]
[378002669,1754664633228,-418.85432963,0.00018753,2]
[378002670,1754664633236,-430.11,0.00018753,2]
[378002671,1754664633246,-400.0,0.00018753,2]
[378002672,1754664633256,-793.72,0.00018753,2]
[378002673,1754664633269,-400.0,0.00018753,2]
[378002674,1754664633278,-480.65,0.00018753,2]
[378002675,1754664633288,-400.0,0.00018753,2]
[378002676,1754664633298,-400.8960637,0.00018753,2]
[378002677,1754664633308,-400.0,0.00018753,2]
[378002678,1754664633317,-485.56,0.00018753,2]
[378002679,1754664633328,-456.98,0.00018753,2]
[378002680,1754664633337,-400.0,0.00018753,2]
[378002681,1754664633348,-400.0,0.00018753,2]
[378002682,1754664633358,-4902.8,0.00018753,2]
[378002683,1754664633367,-400.0,0.00018753,2]
[378002684,1754664633377,-400.0,0.00018753,2]
[378002685,1754664633386,-400.0,0.00018753,2]
[378002686,1754664633396,-874.51,0.00018753,2]
[378002687,1754664633406,-3632.06,0.00018753,2]
[378002688,1754664633415,-400.0,0.00018753,2]
[378002689,1754664633424,-400.0,0.00018753,2]
[378002690,1754664633433,-499.52,0.00018753,2]
[378002691,1754664633442,-1109.76,0.00018753,2]
[378002692,1754664633451,-400.0,0.00018753,2]
[378002693,1754664633460,-400.0,0.00018753,2]
[378002694,1754664633470,-6320.7,0.00018753,2]
[378002695,1754664633479,-400.0,0.00018753,2]
[378002696,1754664633488,-400.0,0.00018753,2]
[378002697,1754664633497,-400.0,0.00018753,2]
[378002698,1754664633507,-400.0,0.00018753,2]
[378002699,1754664633516,-400.0,0.00018753,2]
[378002700,1754664633526,-400.0,0.00018753,2]
[378002701,1754664633536,-400.0,0.00018753,2]
[378002702,1754664633546,-400.0,0.00018753,2]
[378002703,1754664633555,-1398.32,0.00018753,2]
[378002704,1754664633565,-400.0,0.00018753,2]
[378002705,1754664633574,-400.0,0.00018753,2]
[378002706,1754664633584,-400.0,0.00018753,2]
[378002707,1754664633593,-400.0,0.00018753,2]
[378002708,1754664633603,-400.0,0.00018753,2]
[378002709,1754664633613,-1252.69,0.00018753,2]
[378002710,1754664633622,-2035.19,0.00018753,2]
[378002711,1754664633632,-467.45,0.00018753,2]
[378002712,1754664633641,-400.0,0.00018753,2]
[378002713,1754664633651,-400.0,0.00018753,2]
[378002714,1754664633664,-500.0,0.00018753,2]
[378002715,1754664633674,-400.0,0.00018753,2]
[378002716,1754664633684,-400.0,0.00018753,2]
[378002717,1754664633694,-400.0,0.00018753,2]
[378002718,1754664633706,-400.0,0.00018753,2]
[378002719,1754664633716,-400.0,0.00018753,2]
[378002720,1754664633729,-400.0,0.00018753,2]
[378002721,1754664633739,-9970.29,0.00018753,2]
[378002722,1754664633748,-400.0,0.00018753,2]
[378002723,1754664633757,-400.0,0.00018753,2]
[378002724,1754664633767,-491.36,0.00018753,2]
[378002725,1754664633776,-1408.54,0.00018753,2]
[378002726,1754664633786,-400.0,0.00018753,2]
[378002727,1754664633795,-400.0,0.00018753,2]
[378002728,1754664633805,-5966.01,0.00018753,2]
[378002729,1754664633815,-400.0,0.00018753,2]
[378002730,1754664633825,-400.0,0.00018753,2]
[378002731,1754664633834,-1138.12,0.00018753,2]
[378002732,1754664633844,-400.0,0.00018753,2]
[378002733,1754664633854,-483.9,0.00018753,2]
[378002734,1754664633863,-517.84,0.00018753,2]
[378002735,1754664633873,-500.0,0.00018753,2]
[378002736,1754664633883,-400.0,0.00018753,2]
[378002737,1754664633893,-400.0,0.00018753,2]
[378002738,1754664633903,-1252.61,0.00018753,2]
[378002739,1754664633912,-864.45,0.00018753,2]
[378002740,1754664633922,-429.29,0.00018753,2]
[378002741,1754664633931,-474.35369871,0.00018753,2]
[378002742,1754664633942,-402.25670645,0.00018753,2]
[378002743,1754664633952,-1067.75,0.00018753,2]
[378002744,1754664633962,-167.38036496,0.00018753,2]
[378002745,1754664633971,-668.51,0.00018753,2]
[378002746,1754664633981,-400.0,0.00018753,2]
[378002747,1754664633991,-400.0,0.00018753,2]
[378002748,1754664634000,-186.19945097,0.00018753,2]
[378002749,1754664634010,-436.66577193,0.00018753,2]
[378002750,1754664634019,-400.0,0.00018754,2]
[378002751,1754664634029,-400.0,0.00018754,2]
[378002752,1754664634039,-400.0,0.00018754,2]
[378002753,1754664634049,-400.0,0.00018754,2]
[378002754,1754664634059,-508.19,0.00018754,2]
[378002755,1754664634068,-729.58,0.00018754,2]
[378002756,1754664634078,-401.13384614,0.00018754,2]
[378002757,1754664634088,-400.0,0.00018754,2]
[378002758,1754664634097,-1000.0,0.00018754,2]
[378002759,1754664634107,-400.0,0.00018754,2]
[378002760,1754664634116,-400.0,0.00018754,2]
[378002761,1754664634126,-400.0,0.00018754,2]
[378002762,1754664634136,-400.0,0.00018754,2]
[378002763,1754664634146,-477.26,0.00018754,2]
[378002764,1754664634156,-400.0,0.00018754,2]
[378002765,1754664634166,-412.4,0.00018754,2]
[378002766,1754664634175,-400.0,0.00018754,2]
[378002767,1754664634185,-400.0,0.00018754,2]
[378002768,1754664634195,-400.0,0.00018754,2]
[378002769,1754664634205,-400.0,0.00018754,2]
[378002770,1754664634215,-400.0,0.00018754,2]
[378002771,1754664634224,-474.78,0.00018754,2]
[378002772,1754664634234,-400.0,0.00018754,2]
[378002773,1754664634244,-414.81,0.00018754,2]
[378002774,1754664634254,-400.0,0.00018754,2]
[378002775,1754664634268,-489.01,0.00018754,2]
[378002776,1754664634277,-400.0,0.00018754,2]
[378002777,1754664634287,-400.0,0.00018754,2]
[378002778,1754664634296,-161.68,0.00018754,2]
[378002779,1754664634306,-471.57,0.00018754,2]
[378002780,1754664634316,-400.0,0.00018754,2]
[378002781,1754664634325,-400.0,0.00018754,2]
[378002782,1754664634334,-400.0,0.00018754,2]
[378002783,1754664634344,-492.16,0.00018754,2]
[378002784,1754664634354,-400.0,0.00018754,2]
[378002785,1754664634363,-400.0,0.00018754,2]
[378002786,1754664634373,-400.0,0.00018754,2]
[378002787,1754664634382,-400.0,0.00018754,2]
[378002788,1754664634392,-400.0,0.00018754,2]
[378002789,1754664634401,-400.0,0.00018754,2]
[378002790,1754664634410,-400.0,0.00018754,2]
[378002791,1754664634420,-415.19508459,0.00018754,2]
[378002792,1754664634429,-400.0,0.00018754,2]
[378002793,1754664634439,-400.0,0.00018754,2]
[378002794,1754664634449,-500.0,0.00018754,2]
[378002795,1754664634460,-400.0,0.00018754,2]
[378002796,1754664634469,-400.0,0.00018754,2]
[378002797,1754664634479,-400.0,0.00018754,2]
[378002798,1754664634488,-400.0,0.00018754,2]
[378002799,1754664634498,-400.0,0.00018754,2]
[378002800,1754664634507,-569.53,0.00018754,2]
[378002801,1754664634517,-400.0,0.00018754,2]
[378002802,1754664634526,-400.0,0.00018754,2]
[378002803,1754664634536,-400.0,0.00018754,2]
[378002804,1754664634546,-400.0,0.00018754,2]
[378002805,1754664634555,-400.0,0.00018754,2]
[378002806,1754664634564,-400.0,0.00018754,2]
[378002807,1754664634574,-531.39,0.00018754,2]
[378002808,1754664634583,-400.0,0.00018754,2]
[378002809,1754664634592,-400.0,0.00018754,2]
[378002810,1754664634602,-400.0,0.00018754,2]
[378002811,1754664634611,-400.0,0.00018754,2]
[378002812,1754664634620,-400.0,0.00018754,2]
[378002813,1754664634630,-400.0,0.00018754,2]
[378002814,1754664634640,-400.0,0.00018754,2]
[378002815,1754664634649,-400.0,0.00018754,2]
[378002816,1754664634659,-400.0,0.00018754,2]
[378002817,1754664634668,-400.0,0.00018754,2]
[378002818,1754664634677,-400.0,0.00018754,2]
[378002819,1754664634687,-400.0,0.00018754,2]
[378002820,1754664634697,-494.68,0.00018754,2]
[378002821,1754664634708,-400.0,0.00018754,2]
[378002822,1754664634718,-400.0,0.00018754,2]
[378002823,1754664634728,-400.0,0.00018754,2]
[378002824,1754664634737,-400.0,0.00018754,2]
[378002825,1754664634747,-400.0,0.00018754,2]
[378002826,1754664634757,-400.0,0.00018754,2]
[378002827,1754664634766,-400.0,0.00018754,2]
[378002828,1754664634775,-551.44,0.00018754,2]
[378002829,1754664634784,-623.16,0.00018754,2]
[378002830,1754664634794,-400.0,0.00018754,2]
[378002831,1754664634804,-400.0,0.00018754,2]
[378002832,1754664634813,-423.84,0.00018754,2]
[378002833,1754664634823,-645.36,0.00018754,2]
[378002834,1754664634832,-400.0,0.00018754,2]
[378002835,1754664634842,-400.0,0.00018754,2]
[378002836,1754664634851,-400.0,0.00018754,2]
[378002837,1754664634861,-400.0,0.00018754,2]
[378002838,1754664634871,-400.0,0.00018754,2]
[378002839,1754664634880,-400.0,0.00018754,2]
[378002840,1754664634890,-400.0,0.00018754,2]
[378002841,1754664634899,-517.45,0.00018754,2]
[378002842,1754664634909,-400.0,0.00018754,2]
[378002843,1754664634919,-400.0,0.00018754,2]
[378002844,1754664634929,-403.03,0.00018754,2]
[378002845,1754664634939,-536.65,0.00018754,2]
[378002846,1754664634949,-570.31,0.00018754,2]
[378002847,1754664634962,-552.41,0.00018754,2]
[378002848,1754664634974,-400.0,0.00018754,2]
[378002849,1754664634995,-400.0,0.00018754,2]
[378002850,1754664635006,-400.0,0.00018754,2]
[378002851,1754664635015,-400.0,0.00018754,2]
[378002852,1754664635025,-400.0,0.00018754,2]
[378002853,1754664635035,-400.0,0.00018754,2]
[378002854,1754664635044,-402.28,0.00018754,2]
[378002855,1754664635054,-400.0,0.00018754,2]
[378002856,1754664635064,-398.19943742,0.00018754,2]
[378002857,1754664635073,-464.07,0.00018754,2]
[378002858,1754664635083,-589.84,0.00018754,2]
[378002859,1754664635092,-457.04,0.00018754,2]
[378002860,1754664635102,-424.46,0.00018754,2]
[378002861,1754664635112,-400.0,0.00018754,2]
[378002862,1754664635121,-478.9,0.00018754,2]
[378002863,1754664635132,-451.25,0.00018754,2]
[378002864,1754664635141,-400.0,0.00018754,2]
[378002865,1754664635151,-400.0,0.00018754,2]
[378002866,1754664635161,-485.67,0.00018754,2]
[378002867,1754664635171,-400.0,0.00018754,2]
[378002868,1754664635181,-400.0,0.00018754,2]
[378002869,1754664635191,-400.0,0.00018754,2]
[378002870,1754664635200,-400.0,0.00018754,2]
[378002871,1754664635212,-400.0,0.00018754,2]
[378002872,1754664635221,-400.0,0.00018754,2]
[378002873,1754664635231,-443.33,0.00018754,2]
[378002874,1754664635240,-1084.8,0.00018754,2]
[378002875,1754664635249,-400.0,0.00018754,2]
[378002876,1754664635259,-400.0,0.00018754,2]
[378002877,1754664635272,-400.0,0.00018754,2]
[378002878,1754664635281,-546.52,0.00018754,2]
[378002879,1754664635291,-400.0,0.00018754,2]
[378002880,1754664635301,-400.0,0.00018754,2]
[378002881,1754664635310,-664.79,0.00018754,2]
[378002882,1754664635319,-952.58,0.00018754,2]
[378002883,1754664635329,-400.0,0.00018754,2]
[378002884,1754664635339,-407.26,0.00018754,2]
[378002885,1754664635349,-400.0,0.00018754,2]
[378002886,1754664635358,-641.72,0.00018754,2]
[378002887,1754664635368,-400.0,0.00018754,2]
[378002888,1754664635377,-400.0,0.00018754,2]
[378002889,1754664635387,-400.0,0.00018754,2]
[378002890,1754664635398,-710.32,0.00018754,2]
[378002891,1754664635407,-400.0,0.00018754,2]
[378002892,1754664635418,-444.91,0.00018754,2]
[378002893,1754664635428,-619.48,0.00018754,2]
[378002894,1754664635437,-246.70566607,0.00018754,2]
[378002895,1754664635447,-411.57,0.00018754,2]
[378002896,1754664635459,-518.67,0.00018754,2]
[378002897,1754664635468,-428.02,0.00018754,2]
[378002898,1754664635478,-520.37,0.00018754,2]
[378002899,1754664635488,-790.06,0.00018754,2]
[378002900,1754664635498,-400.0,0.00018754,2]
[378002901,1754664635507,-400.0,0.00018754,2]
[378002902,1754664635518,-400.0,0.00018754,2]
[378002903,1754664635527,-486.7,0.00018754,2]
[378002904,1754664635537,-421.16,0.00018754,2]
[378002905,1754664635546,-548.86,0.00018754,2]
[378002906,1754664635555,-400.0,0.00018754,2]
[378002907,1754664635565,-406.96,0.00018754,2]
[378002908,1754664635575,-589.78,0.00018754,2]
[378002909,1754664635584,-596.11,0.00018754,2]
[378002910,1754664635594,-597.43,0.00018754,2]
[378002911,1754664635603,-526.24,0.00018754,2]
[378002912,1754664635614,-497.25,0.00018754,2]
[378002913,1754664635624,-400.0,0.00018754,2]
[378002914,1754664635633,-400.0,0.00018754,2]
[378002915,1754664635643,-646.55,0.00018754,2]
[378002916,1754664635653,-400.0,0.00018754,2]
[378002917,1754664635663,-519.73,0.00018754,2]
[378002918,1754664635673,-476.98,0.00018754,2]
[378002919,1754664635683,-400.0,0.00018754,2]
[378002920,1754664635692,-400.0,0.00018754,2]
[378002921,1754664635702,-400.0,0.00018754,2]
[378002922,1754664635715,-400.0,0.00018754,2]
[378002923,1754664635726,-424.76,0.00018754,2]
[378002924,1754664635737,-400.0,0.00018754,2]
[378002925,1754664635746,-400.0,0.00018754,2]
[378002926,1754664635756,-740.97,0.00018754,2]
[378002927,1754664635765,-407.8,0.00018754,2]
[378002928,1754664635775,-560.7,0.00018754,2]
[378002929,1754664635784,-400.0,0.00018754,2]
[378002930,1754664635794,-400.0,0.00018754,2]
[378002931,1754664635803,-400.0,0.00018754,2]
[378002932,1754664635813,-849.51,0.00018754,2]
[378002933,1754664635823,-400.0,0.00018754,2]
[378002934,1754664635832,-909.3,0.00018754,2]
[378002935,1754664635842,-499.76,0.00018754,2]
[378002936,1754664635851,-400.0,0.00018754,2]
[378002937,1754664635862,-400.0,0.00018754,2]
[378002938,1754664635872,-400.0,0.00018754,2]
[378002939,1754664635881,-603.53,0.00018754,2]
[378002940,1754664635891,-400.0,0.00018754,2]
[378002941,1754664635901,-400.0,0.00018754,2]
[378002942,1754664635911,-400.0,0.00018754,2]
[378002943,1754664635920,-400.0,0.00018754,2]
[378002944,1754664635930,-400.0,0.00018754,2]
[378002945,1754664635941,-751.23,0.00018754,2]
[378002946,1754664635950,-400.0,0.00018754,2]
[378002947,1754664635960,-568.38,0.00018754,2]
[378002948,1754664635970,-400.0,0.00018754,2]
[378002949,1754664635980,-400.0,0.00018754,2]
[378002950,1754664635989,-580.29,0.00018754,2]
[378002951,1754664635999,-522.83,0.00018754,2]
[378002952,1754664636009,-489.1,0.00018754,2]
[378002953,1754664636018,-400.0,0.00018754,2]
[378002954,1754664636029,-400.0,0.00018754,2]
[378002955,1754664636038,-400.0,0.00018754,2]
[378002956,1754664636048,-400.0,0.00018754,2]
[378002957,1754664636058,-473.95,0.00018754,2]
[378002958,1754664636067,-656.02,0.00018754,2]
[378002959,1754664636077,-400.0,0.00018754,2]
[378002960,1754664636087,-714.92,0.00018754,2]
[378002961,1754664636316,-400.0,0.00018754,2]
[378002962,1754664636326,-400.0,0.00018754,2]
[378002963,1754664636336,-1041.92,0.00018754,2]
[378002964,1754664636346,-400.0,0.00018754,2]
[378002965,1754664636356,-400.0,0.00018754,2]
[378002966,1754664636365,-400.0,0.00018754,2]
[378002967,1754664636375,-400.0,0.00018754,2]
[378002968,1754664636385,-400.0,0.00018754,2]
[378002969,1754664636394,-613.67,0.00018754,2]
[378002970,1754664636403,-631.95,0.00018754,2]
[378002971,1754664636413,-428.42267592,0.00018754,2]
[378002972,1754664636422,-400.0,0.00018754,2]
[378002973,1754664636431,-400.0,0.00018754,2]
[378002974,1754664636441,-438.88,0.00018754,2]
[378002975,1754664636450,-659.55,0.00018754,2]
[378002976,1754664636460,-402.32005835,0.00018754,2]
[378002977,1754664636470,-474.16,0.00018754,2]
[378002978,1754664636480,-527.79,0.00018754,2]
[378002979,1754664636489,-400.0,0.00018754,2]
[378002980,1754664636499,-411.6,0.00018754,2]
[378002981,1754664636508,-500.0,0.00018754,2]
[378002982,1754664636518,-898.15,0.00018754,2]
[378002983,1754664636527,-400.0,0.00018754,2]
[378002984,1754664636537,-400.0,0.00018754,2]
[378002985,1754664636546,-400.0,0.00018754,2]
[378002986,1754664636556,-437.23,0.00018754,2]
[378002987,1754664636565,-958.81,0.00018754,2]
[378002988,1754664636575,-441.37,0.00018754,2]
[378002989,1754664636585,-659.16,0.00018754,2]
[378002990,1754664636595,-438.5,0.00018754,2]
[378002991,1754664636604,-400.0,0.00018754,2]
[378002992,1754664636614,-3242.07,0.00018754,2]
[378002993,1754664636624,-400.0,0.00018754,2]
[378002994,1754664636633,-433.48161212,0.00018754,2]
[378002995,1754664636642,-418.35,0.00018754,2]
[378002996,1754664636652,-400.0,0.00018754,2]
[378002997,1754664636661,-400.0,0.00018754,2]
[378002998,1754664636671,-660.06,0.00018754,2]
[378002999,1754664636680,-1301.7,0.00018754,2]
[378003000,1754664636690,-821.03,0.00018754,2]
[378003001,1754664636699,-400.0,0.00018754,2]
[378003002,1754664636710,-400.0,0.00018754,2]
[378003003,1754664636720,-400.0,0.00018754,2]
[378003004,1754664636729,-602.0,0.00018754,2]
[378003005,1754664636739,-400.0,0.00018754,2]
[378003006,1754664636748,-928.4,0.00018754,2]
[378003007,1754664636757,-400.0,0.00018754,2]
[378003008,1754664636767,-518.44,0.00018754,2]
[378003009,1754664636777,-400.0,0.00018754,2]
[378003010,1754664636786,-611.59,0.00018754,2]
[378003011,1754664636796,-965.55,0.00018754,2]
[378003012,1754664636805,-961.96,0.00018754,2]
[378003013,1754664636815,-400.0,0.00018754,2]
[378003014,1754664636825,-3410.88,0.00018754,2]
[378003015,1754664636834,-470.75,0.00018754,2]
[378003016,1754664636844,-1223.98,0.00018754,2]
[378003017,1754664636854,-400.0,0.00018754,2]
[378003018,1754664636864,-1762.61,0.00018754,2]
[378003019,1754664636873,-1155.68,0.00018754,2]
[378003020,1754664636884,-917.41,0.00018754,2]
[378003021,1754664636893,-2239.61,0.00018754,2]
[378003022,1754664636903,-400.0,0.00018754,2]
[378003023,1754664636913,-400.0,0.00018754,2]
[378003024,1754664636922,-508.43,0.00018754,2]
[378003025,1754664636932,-400.0,0.00018754,2]
[378003026,1754664636941,-400.0,0.00018754,2]
[378003027,1754664636951,-1611.03,0.00018754,2]
[378003028,1754664636961,-400.0,0.00018754,2]
[378003029,1754664636971,-2796.6,0.00018754,2]
[378003030,1754664636981,-400.0,0.00018754,2]
[378003031,1754664636991,-1111.48,0.00018754,2]
[378003032,1754664637000,-753.08,0.00018754,2]
[378003033,1754664637010,-400.0,0.00018754,2]
[378003034,1754664637020,-703.35,0.00018754,2]
[378003035,1754664637029,-400.0,0.00018754,2]
[378003036,1754664637039,-925.71,0.00018754,2]
[378003037,1754664637048,-400.0,0.00018754,2]
[378003038,1754664637058,-400.0,0.00018754,2]
[378003039,1754664637067,-504.78,0.00018754,2]
[378003040,1754664637077,-614.24,0.00018754,2]
[378003041,1754664637086,-400.000001,0.00018754,2]
[378003042,1754664637096,-1252.77,0.00018754,2]
[378003043,1754664637105,-2482.56,0.00018754,2]
[378003044,1754664637115,-400.0,0.00018754,2]
[378003045,1754664637124,-1452.79,0.00018754,2]
[378003046,1754664637134,-1130.3,0.00018754,2]
[378003047,1754664637143,-461.94,0.00018754,2]
[378003048,1754664637152,-400.0,0.00018754,2]
[378003049,1754664637162,-400.0,0.00018754,2]
[378003050,1754664637172,-400.0,0.00018754,2]
[378003051,1754664637181,-400.0,0.00018754,2]
[378003052,1754664637191,-400.0,0.00018754,2]
[378003053,1754664637200,-864.11,0.00018754,2]
[378003054,1754664637210,-405.09,0.00018754,2]
[378003055,1754664637220,-2779.67,0.00018754,2]
[378003056,1754664637229,-4246.9,0.00018754,2]
[378003057,1754664637239,-1065.3,0.00018754,2]
[378003058,1754664637248,-484.05,0.00018754,2]
[378003059,1754664637258,-880.13,0.00018754,2]
[378003060,1754664637271,-400.0,0.00018754,2]
[378003061,1754664637281,-771.29,0.00018754,2]
[378003062,1754664637290,-205.378376,0.00018754,2]
[378003063,1754664637300,-655.37,0.00018754,2]
[378003064,1754664637310,-476.89,0.00018754,2]
[378003065,1754664637320,-400.0,0.00018754,2]
[378003066,1754664637330,-3272.96,0.00018754,2]
[378003067,1754664637340,-1225.58,0.00018754,2]
[378003068,1754664637351,-446.24,0.00018754,2]
[378003069,1754664637361,-400.0,0.00018754,2]
[378003070,1754664637371,-400.0,0.00018754,2]
[378003071,1754664637381,-300.0,0.00018754,2]
[378003072,1754664637391,-400.0,0.00018754,2]
[378003073,1754664637400,-400.0,0.00018754,2]
[378003074,1754664637410,-639.21,0.00018754,2]
[378003075,1754664637421,-828.76,0.00018754,2]
[378003076,1754664637430,-1221.78,0.00018754,2]
[378003077,1754664637440,-400.0,0.00018754,2]
[378003078,1754664637452,-419.69,0.00018754,2]
[378003079,1754664637462,-529.12,0.00018754,2]